bitfinex/quotes_ETHUSD_20220218
["timestamp","ask_amount","ask_price","bid_price","bid_amount"]
[1645209898843,0.01054871,2788.4,2787.4,0.03580258]
[1645209899243,1.80541871,2788.4,2787.4,0.03580258]
[1645209899441,0.00583843,2788.3,2787.5,0.66840126]
[1645209899943,2.70918711,2788.5,2787.5,0.66840126]
[1645209900446,2.70918711,2788.5,2787.4,0.03580258]
[1645209900447,11.06,2788.0,2787.4,0.03580258]
[1645209900644,11.06583843,2788.0,2787.4,0.03580258]
[1645209900844,0.00583843,2788.1,2787.4,0.03580258]
[1645209901044,11.06583843,2788.2,2787.4,0.03580258]
[1645209901487,0.89759,2787.9,2787.4,0.03580258]
[1645209901887,0.00583843,2788.3,2787.4,0.03580258]
[1645209902482,0.90337843,2788.3,2787.4,0.03580258]
[1645209902682,0.89746,2788.2,2787.4,0.03580258]
[1645209902882,0.00583843,2788.1,2787.4,0.03580258]
[1645209903083,11.76053177,2788.1,2787.1,0.86213507]
[1645209903281,0.70053177,2788.1,2787.1,0.86213507]
[1645209903481,0.00583843,2788.0,2787.1,0.86213507]
[1645209903683,0.90345843,2788.0,2786.8,6.7177]
[1645209904283,0.90345843,2788.0,2786.8,6.5385]
[1645209904485,0.90345843,2788.0,2786.8,7.43608]
[1645209904984,0.00583843,2788.0,2787.1,0.6480364]
[1645209905232,0.00583843,2788.2,2787.2,0.519]
[1645209905433,0.01833861,2788.3,2787.3,0.1792]
[1645209905634,0.01833861,2788.3,2787.4,5.519]
[1645209905834,0.01833861,2788.3,2787.8,0.5]
[1645209906034,0.01833861,2788.3,2788.0,0.77513018]
[1645209906236,7.30992159,2789.4,2788.0,1.37513018]
[1645209906436,7.30992159,2789.4,2788.2,2.6912779]
[1645209906437,7.49,2789.4,2788.2,2.6912779]
[1645209906637,7.49,2789.4,2788.3,0.3]
[1645209906939,2.6782,2789.8,2788.4,0.8971]
[1645209907337,2.6782,2789.8,2789.0,0.74151509]
[1645209907536,0.88139611,2789.9,2789.0,0.74151509]
[1645209907937,0.89691,2789.9,2789.0,0.74151509]
[1645209908139,2.10551,2790.3,2789.1,0.3]
[1645209908140,1.2086,2790.3,2789.1,0.3]
[1645209908337,1.554,2790.6,2789.2,0.1792]
[1645209908537,1.554,2790.6,2789.3,0.8967698]
[1645209908738,0.00230833,2789.6,2789.3,0.8967698]
[1645209908991,1.15356711,2789.4,2789.3,0.8967698]
[1645209909385,1.15356711,2789.4,2789.3,0.87132545]
[1645209909584,1.15356711,2789.4,2789.3,1.17132545]
[1645209909787,1.15356711,2789.4,2789.3,0.87132545]
[1645209910087,0.01075674,2789.9,2789.4,6.0]
[1645209910286,14.13034266,2791.2,2789.6,6.0]
[1645209910287,11.1031246,2791.2,2789.6,6.0]
[1645209910485,0.0431246,2791.2,2790.0,1.79282]
[1645209910686,0.0431246,2791.2,2790.1,0.6981]
[1645209910886,0.0431246,2791.2,2790.1,0.9981]
[1645209911090,0.0431246,2791.2,2790.5,0.64676253]
[1645209911891,0.0431246,2791.2,2790.5,2.36213253]
[1645209912491,0.0431246,2791.2,2790.7,1.7924194]
[1645209912733,0.0431246,2791.2,2790.5,1.46576253]
[1645209912734,0.0431246,2791.2,2790.5,0.1791]
[1645209912934,0.0431246,2791.2,2790.1,0.3023221]
[1645209912935,0.0431246,2791.2,2790.2,1.97185]
[1645209913133,0.0431246,2791.2,2790.2,1.37559]
[1645209913335,0.00230434,2791.1,2790.2,1.37559]
[1645209913535,0.00230434,2791.1,2790.4,0.8964272]
[1645209913739,0.89714181,2791.1,2790.4,0.1791]
[1645209914036,0.89714181,2791.1,2790.3,0.1791]
[1645209914037,0.00230434,2791.1,2790.3,0.1791]
[1645209914236,0.0431246,2791.2,2790.3,0.1791]
[1645209914436,0.0431246,2791.2,2790.2,0.1791]
[1645209914639,0.00268939,2790.9,2790.1,0.0023221]
[1645209914840,0.80975653,2790.4,2790.1,0.0023221]
[1645209915039,0.80975653,2790.4,2789.6,0.00131099]
[1645209915938,0.89688,2790.3,2789.5,0.01674115]
[1645209916137,2.69114,2790.2,2789.6,0.00131099]
[1645209916338,11.06,2789.9,2788.4,0.96748774]
[1645209916609,11.06,2789.9,2788.3,0.1792]
[1645209916610,11.06,2789.7,2788.3,0.1792]
[1645209916801,11.06,2789.5,2787.9,0.1792]
[1645209917001,11.06,2789.4,2787.9,0.1792]
[1645209917204,1.79433,2789.5,2788.0,0.89715]
[1645209917402,0.72246806,2789.0,2788.1,0.88374661]
[1645209917600,0.72246806,2789.0,2788.2,0.3]
[1645209917601,0.72154862,2789.0,2788.2,0.3]
[1645209918001,0.89713,2789.2,2788.1,0.4792]
[1645209918201,0.519,2789.6,2788.3,0.89708]
[1645209918803,0.519,2789.6,2788.3,2.6910227]
[1645209919001,0.73950685,2789.1,2788.3,0.73416145]
[1645209919200,1.63675685,2789.1,2788.3,0.73416145]
[1645209919400,1.63675685,2789.1,2788.1,0.4792]
[1645209919401,0.89725,2788.9,2788.8,0.0013081]
[1645209920104,0.73950685,2789.1,2788.8,0.0013081]
[1645209920345,0.519,2789.6,2788.2,0.89713]
[1645209920346,11.579,2789.6,2788.2,0.89713]
[1645209920547,0.89709,2789.3,2788.7,0.00130814]
[1645209921347,1.0,2790.2,2788.7,0.89824814]
[1645209921550,0.00101282,2790.0,2788.7,0.89694]
[1645209921747,0.00101282,2790.0,2788.5,0.77653178]
[1645209921748,0.00268882,2790.0,2788.9,0.00130807]
[1645209922147,0.00268882,2790.0,2788.9,4.39798807]
[1645209922349,0.00268882,2790.0,2789.7,0.84643425]
[1645209922851,11.06,2790.7,2789.7,0.84643425]
[1645209923049,0.00268919,2790.0,2789.7,0.84643425]
[1645209923852,11.96739414,2790.7,2789.7,0.84643425]
[1645209923853,0.63507775,2790.6,2789.7,0.84643425]
[1645209924082,0.00268952,2790.0,2789.7,0.84643425]
[1645209925082,0.8967,2790.5,2789.8,0.8966392]
[1645209925294,0.63507775,2790.6,2789.8,0.8966392]
[1645209925487,0.00268952,2790.0,2789.8,0.8966392]
[1645209925988,0.00268952,2790.0,2789.8,4.3966392]
[1645209926189,0.00268952,2790.0,2789.9,3.98052688]
[1645209926386,0.0431246,2791.2,2790.2,0.896477]
[1645209926586,0.01075562,2790.7,2790.2,0.896477]
[1645209926784,0.01075562,2790.7,2789.9,0.00132688]
[1645209927586,1.55893872,2790.7,2789.9,0.00132688]
[1645209927852,0.00268946,2790.4,2789.9,0.00132688]
[1645209928054,0.00268946,2790.4,2789.5,0.00130778]
[1645209928852,0.00922564,2790.0,2789.4,1.35633652]
[1645209929053,0.00922564,2790.0,2789.5,0.00130778]
[1645209929854,0.00922564,2790.0,2789.5,0.8967627]
[1645209930152,0.01191508,2790.0,2789.5,0.89807048]
[1645209930352,0.01191508,2790.0,2789.6,0.3]
[1645209930556,0.00268944,2790.0,2789.6,0.3]
[1645209931152,0.89678,2790.3,2789.6,0.3]
[1645209931597,0.00268948,2790.0,2789.6,0.3]
[1645209931986,0.00268948,2790.0,2789.6,2.9898636]
[1645209932187,0.00268948,2790.0,2789.6,2.6898636]
[1645209932387,0.01075529,2790.7,2789.7,0.3]
[1645209932588,0.00268948,2790.0,2789.7,0.3]
[1645209932786,0.00268948,2790.0,2789.9,0.88695677]
[1645209933288,0.00268948,2790.0,2789.9,1.18695677]
[1645209933486,0.0431246,2791.2,2789.9,1.18695677]
[1645209933888,0.00268951,2790.1,2790.0,3.5]
[1645209934086,0.00268951,2790.1,2790.0,0.1792]
[1645209934286,0.00268951,2790.1,2790.0,1.0]
[1645209934486,0.00268951,2790.1,2790.0,0.89637]
[1645209934690,0.0431246,2791.2,2790.0,0.89637]
[1645209934887,0.0431246,2791.2,2790.1,5.519]
[1645209935087,0.01075612,2790.7,2790.2,3.6791]
[1645209935365,0.01075612,2790.7,2790.3,1.41532]
[1645209935565,0.01075612,2790.7,2790.4,0.1791]
[1645209935769,0.01075612,2790.7,2790.5,0.75320388]
[1645209935965,0.0431246,2791.2,2790.5,0.75320388]
[1645209936165,0.0431246,2791.2,2790.5,1.05320388]
[1645209936368,0.00229726,2790.6,2790.5,1.05320388]
[1645209937265,0.00229726,2790.6,2789.8,1.0]
[1645209937266,0.00580924,2791.0,2790.1,1.7929611]
[1645209937468,0.89894726,2790.7,2789.8,0.519]
[1645209937667,0.00580924,2790.6,2789.8,0.519]
[1645209937868,0.00580924,2790.6,2789.9,0.89655]
[1645209938068,0.00229726,2790.7,2789.9,0.89655]
[1645209938370,0.0431246,2791.2,2790.5,0.77270271]
[1645209938568,0.01075624,2790.8,2790.5,0.77270271]
[1645209939590,0.0431246,2791.2,2790.5,1.37270271]
[1645209939791,0.00268941,2790.8,2790.5,1.37270271]
[1645209940191,0.00268941,2790.8,2790.6,0.89633]
[1645209940389,0.00268941,2790.8,2790.7,0.3]
[1645209940792,0.05388061,2791.2,2790.8,0.3]
[1645209940793,0.0431246,2791.2,2790.8,0.3]
[1645209941294,0.0431246,2791.2,2791.1,0.74773949]
[1645209941492,0.0431246,2791.2,2790.8,0.8963262]
[1645209941789,0.0431246,2791.2,2790.6,0.3]
[1645209942190,0.00268936,2791.1,2790.6,0.3]
[1645209942390,0.00268936,2791.1,2790.7,0.896424]
[1645209942590,0.00268936,2791.1,2790.7,0.7540832]
[1645209942837,0.00268936,2791.1,2790.2,2.3119797]
[1645209943033,0.00268936,2791.1,2790.2,2.0929797]
[1645209943232,0.0431246,2791.2,2790.2,2.0929797]
[1645209943431,0.0431246,2791.2,2790.4,0.8964985]
[1645209943639,0.00268937,2791.0,2790.7,0.01597666]
[1645209943832,0.89662,2790.8,2790.7,0.01597666]
[1645209944433,0.00268937,2791.0,2790.7,0.01597666]
[1645209944633,0.76041406,2791.1,2790.7,0.01597666]
[1645209944634,0.00268939,2790.9,2790.7,0.01597666]
[1645209945533,0.0431246,2791.2,2790.7,0.01597666]
[1645209945934,0.00268939,2790.9,2790.8,0.79413051]
[1645209946334,0.00268939,2790.9,2790.8,1.09413051]
[1645209946593,0.00268939,2790.9,2790.8,1.39413051]
[1645209946888,0.0431246,2791.2,2790.8,1.39413051]
[1645209947087,0.00268938,2791.0,2790.8,1.39413051]
[1645209947688,0.00268938,2791.0,2790.9,1.7924626]
[1645209947887,0.0431246,2791.2,2790.9,1.7924626]
[1645209948087,0.0431246,2791.2,2790.9,2.0924626]
[1645209948289,0.00268937,2791.0,2790.9,2.0924626]
[1645209949290,0.0431246,2791.2,2790.9,0.3]
[1645209949489,0.00268936,2791.1,2790.9,0.3]
[1645209949893,0.00268936,2791.1,2790.8,0.01597666]
[1645209950338,0.0431246,2791.2,2790.8,0.01597666]
[1645209950847,11.70070208,2790.9,2790.8,0.01597666]
[1645209951038,11.06,2791.0,2790.8,0.01597666]
[1645209951742,11.06268937,2791.0,2790.8,0.01597666]
[1645209952341,11.95926937,2791.0,2790.8,0.01597666]
[1645209952742,0.75963155,2791.1,2790.8,0.01597666]
[1645209952943,0.75963155,2791.1,2790.8,0.014379]
[1645209953143,0.00268937,2791.0,2790.8,0.014379]
[1645209953744,0.00268937,2791.0,2790.5,0.0156197]
[1645209953994,0.76544079,2791.1,2790.5,0.0156197]
[1645209954285,0.00268937,2791.0,2790.5,0.0156197]
[1645209955187,0.75963155,2791.1,2790.5,0.0156197]
[1645209955385,0.00268939,2790.9,2790.5,0.0156197]
[1645209955586,0.89928939,2790.9,2790.5,0.0156197]
[1645209955785,0.89928939,2790.9,2790.5,10.0156197]
[1645209956388,0.8966,2790.9,2790.5,10.0156197]
[1645209956586,0.0026894,2790.8,2790.5,10.0156197]
[1645209957588,0.8966,2790.9,2790.5,10.0156197]
[1645209957833,0.00268941,2790.8,2790.5,10.0156197]
[1645209958835,0.00580924,2791.0,2790.7,0.02426084]
[1645209959037,0.00268941,2790.8,2790.7,0.02426084]
[1645209960235,0.00268939,2790.9,2790.7,0.02426084]
[1645209961236,0.89658,2791.0,2790.7,0.02426084]
[1645209961484,0.00247263,2790.9,2790.7,0.02426084]
[1645209963085,0.02962772,2790.8,2790.5,10.0]
[1645209963886,0.03210037,2790.8,2790.5,10.0]
[1645209964488,0.92875037,2790.8,2790.5,10.0]
[1645209964888,0.92627772,2790.8,2790.5,10.0]
[1645209965088,0.92896713,2790.8,2790.5,10.0]
[1645209965944,0.92627772,2790.8,2790.5,10.0]
[1645209966343,0.92896713,2790.8,2790.5,10.0]
[1645209966549,0.92896713,2790.8,2790.5,6.98894886]
[1645209966746,11.06,2790.7,2790.5,6.29005398]
[1645209966948,11.579,2790.7,2790.5,6.29005398]
[1645209967747,11.06,2790.4,2789.8,0.00131415]
[1645209967946,11.06,2790.2,2789.8,0.00131415]
[1645209968446,11.06,2790.0,2789.0,2.7972]
[1645209968646,0.66876185,2789.8,2789.3,0.79990656]
[1645209968846,0.90277924,2790.3,2789.8,0.00131415]
[1645209968847,2.31563948,2790.2,2789.8,0.00131415]
[1645209969086,0.52168948,2790.2,2789.8,0.00131415]
[1645209969688,0.00580924,2790.3,2789.4,5.1792]
[1645209969889,0.00580924,2790.3,2789.8,0.00131415]
[1645209969890,0.0026894,2790.2,2789.8,0.00131415]
[1645209970090,0.0026894,2790.2,2789.9,1.07566]
[1645209970288,0.0026894,2790.2,2790.0,0.519]
[1645209970489,0.32768642,2790.4,2790.2,5.0]
[1645209970688,0.01075561,2790.8,2790.4,4.5]
[1645209970891,0.04893384,2791.2,2790.5,0.1791]
[1645209970892,0.0431246,2791.2,2790.5,0.1791]
[1645209971089,0.0431246,2791.2,2790.6,1.69292505]
[1645209971090,0.01075593,2790.8,2790.6,1.69292505]
[1645209971290,0.01075593,2790.8,2790.7,0.1791]
[1645209971488,0.01075593,2790.8,2790.7,0.6981]
[1645209972092,0.0431246,2791.2,2790.7,0.6981]
[1645209972290,0.0431246,2791.2,2790.8,1.79205]
[1645209972291,0.00265993,2790.9,2790.8,1.79205]
[1645209972490,0.00265993,2790.9,2790.8,2.49015]
[1645209973138,5.993e-05,2790.9,2790.8,2.31105]
[1645209973341,7.48216915,2792.6,2791.0,6.0]
[1645209973342,3.07596915,2792.6,2791.0,6.0]
[1645209973541,0.01063805,2791.4,2791.2,6.7918655]
[1645209973740,0.01063805,2791.4,2791.3,0.6981]
[1645209973939,8.73e-06,2791.6,2791.4,6.0]
[1645209974140,8.73e-06,2791.6,2791.5,0.519]
[1645209974340,8.73e-06,2791.6,2791.5,1.2981]
[1645209974540,0.04207207,2791.6,2791.5,1.2981]
[1645209974743,0.04207207,2791.6,2791.5,1.53150735]
[1645209974945,0.04207207,2791.6,2791.5,1.71060735]
[1645209975343,0.00194183,2791.6,2791.5,1.119]
[1645209975544,0.0563608,2792.6,2791.8,0.89569]
[1645209975842,0.01074077,2792.2,2791.9,1.4147]
[1645209976242,0.01448029,2792.2,2791.9,1.4147]
[1645209976497,0.01448029,2792.2,2792.0,0.74009591]
[1645209976891,0.00373952,2792.2,2792.0,0.74009591]
[1645209977191,0.00636606,2792.2,2792.0,0.74009591]
[1645209977692,0.00636606,2792.2,2791.9,0.519]
[1645209978091,0.00373952,2792.2,2791.9,0.519]
[1645209979292,0.00373952,2792.2,2791.5,0.05074186]
[1645209980339,0.00373952,2792.2,2791.8,0.87418328]
[1645209980836,0.00261801,2792.0,2791.8,0.87418328]
[1645209981036,0.00261801,2792.0,2791.5,0.05074186]
[1645209981238,0.00635753,2792.0,2791.5,0.05074186]
[1645209982037,0.00264726,2791.9,2791.5,0.05074186]
[1645209982238,0.00638678,2791.9,2791.6,0.63653233]
[1645209982440,0.00638678,2791.9,2791.5,0.05074186]
[1645209982838,0.00373952,2791.9,2791.5,0.05074186]
[1645209983240,0.00264727,2791.8,2791.5,0.05074186]
[1645209983640,0.00264727,2791.8,2791.1,0.00125374]
[1645209983641,0.75934603,2791.6,2791.4,0.01705146]
[1645209984291,0.76573285,2791.6,2791.4,0.01705146]
[1645209984690,0.00638682,2791.6,2791.4,0.01705146]
[1645209985293,0.00373952,2791.6,2791.4,0.01705146]
[1645209985692,0.00635499,2791.6,2791.4,0.01705146]
[1645209986490,0.00373952,2791.6,2791.4,0.01705146]
[1645209986691,0.00373952,2791.6,2791.5,0.71055626]
[1645209986890,0.00635499,2791.6,2791.5,1.22955626]
[1645209987738,0.00373952,2791.6,2791.5,1.22955626]
[1645209988140,3.952e-05,2791.6,2791.5,1.22955626]
[1645209988340,3.952e-05,2791.6,2791.5,1.70865626]
[1645209988940,3.952e-05,2791.6,2791.5,0.9981]
[1645209992790,3.952e-05,2791.6,2791.5,1.26640411]
[1645209993388,0.00743952,2791.6,2791.5,1.26640411]
[1645209996034,0.00743952,2791.6,2791.5,0.519]
[1645209996235,0.00743952,2791.6,2790.9,1.3258]
[1645209996437,0.00743952,2791.6,2790.8,3.3467]
[1645209996438,0.90378952,2791.6,2791.1,0.00118425]
[1645209997239,0.90378952,2791.6,2790.9,0.79325289]
[1645209997436,0.6468153,2791.4,2790.9,0.79325289]
[1645209997637,1.5432253,2791.4,2791.1,0.00118425]
[1645209998439,1.5432253,2791.4,2790.9,0.79325289]
[1645209998839,1.5432253,2791.4,2791.1,0.00118425]
[1645209999686,1.5432253,2791.4,2790.4,0.10816851]
[1645210000088,1.5432253,2791.4,2791.1,0.00116144]
[1645210000391,12.6032253,2791.4,2791.1,0.00116144]
[1645210000787,13.3997806,2791.4,2790.2,2.8612]
[1645210000989,12.85314,2791.3,2790.2,2.8612]
[1645210001191,12.85314,2791.3,2791.1,0.00116144]
[1645210001587,1.79314,2791.3,2791.1,0.00116144]
[1645210001886,0.00252439,2791.5,2791.1,0.89734144]
[1645210002086,0.00743952,2791.6,2791.1,0.89618]
[1645210002485,0.00252435,2791.5,2791.1,0.89734145]
[1645210002742,0.00252435,2791.5,2791.4,0.76207606]
[1645210003345,0.00743952,2791.6,2791.4,0.76207606]
[1645210003544,0.00996483,2791.6,2791.4,0.76207606]
[1645210004542,0.00996483,2791.6,2791.5,0.519]
[1645210004942,0.01005062,2791.6,2791.5,0.519]
[1645210005743,0.00743952,2791.6,2791.5,0.519]
[1645210008492,0.00743952,2791.6,2791.5,0.56912026]
[1645210012946,0.00743952,2791.6,2791.5,0.05012026]
[1645210013447,0.00743952,2791.6,2791.5,0.03309619]
[1645210014289,0.00743952,2791.6,2791.5,0.01348658]
[1645210016988,0.00743952,2791.6,2791.4,1.065e-05]
[1645210017190,11.06,2791.5,2791.4,1.065e-05]
[1645210018442,11.06,2791.4,2791.1,0.00116383]
[1645210018744,11.95662,2791.4,2791.1,0.00116383]
[1645210019045,11.95662,2791.4,2790.4,0.85877003]
[1645210019046,0.79158377,2790.9,2790.4,0.85877003]
[1645210019244,0.00261091,2791.5,2791.1,0.00116383]
[1645210019643,0.8964,2791.4,2791.1,0.00116383]
[1645210020042,11.9564,2791.4,2791.1,0.00116383]
[1645210020244,0.66361687,2791.3,2790.4,0.85877003]
[1645210020443,0.66361687,2791.3,2791.1,0.00116383]
[1645210020844,11.06,2791.2,2791.1,0.00116383]
[1645210021047,11.95649,2791.2,2791.1,0.00116383]
[1645210021243,11.95649,2791.2,2790.0,0.1791]
[1645210021497,11.95649,2791.2,2789.9,0.13718715]
[1645210021498,11.95649,2791.2,2789.9,0.31628715]
[1645210021699,11.06,2791.1,2791.0,0.00116386]
[1645210022100,11.06,2791.1,2791.0,6.386e-05]
[1645210022298,0.89693,2790.7,2789.1,0.6791]
[1645210022497,11.579,2790.6,2789.1,0.6791]
[1645210022700,11.06,2790.4,2789.1,0.5]
[1645210022896,0.519,2790.6,2789.1,0.5]
[1645210022897,11.06,2790.1,2789.1,0.5]
[1645210023097,11.06,2790.1,2789.2,0.88152771]
[1645210023098,0.85009072,2789.7,2789.2,0.88152771]
[1645210023298,0.89702,2789.6,2789.2,0.88152771]
[1645210024300,2.69106,2790.0,2789.2,0.88152771]
[1645210024301,0.89692,2789.8,2789.2,0.88152771]
[1645210024498,1.79369,2790.3,2789.2,0.88152771]
[1645210024699,1.1554,2790.4,2789.2,0.88152771]
[1645210025099,1.1554,2790.4,2789.9,0.70793256]
[1645210025100,1.87749889,2790.4,2789.9,0.70793256]
[1645210025339,0.72209889,2790.4,2789.9,0.70793256]
[1645210025738,0.72209889,2790.4,2789.5,0.89667]
[1645210025940,0.72209889,2790.4,2789.3,0.519]
[1645210026542,0.72209889,2790.4,2790.0,0.00135096]
[1645210026743,0.89676,2790.3,2790.0,0.00135096]
[1645210027343,2.10795,2790.8,2789.8,0.85429606]
[1645210027344,1.2112,2790.8,2789.8,0.85429606]
[1645210027541,1.2112,2790.8,2790.0,0.00135096]
[1645210028344,0.62797936,2790.5,2790.0,0.00135096]
[1645210028546,1.52467936,2790.5,2789.8,0.85429606]
[1645210028994,1.52467936,2790.5,2790.3,0.00135084]
[1645210029498,12.58467936,2790.5,2790.3,0.00135084]
[1645210029897,1.52467936,2790.5,2789.2,0.1791]
[1645210030096,1.52467936,2790.5,2790.3,0.00135084]
[1645210030897,1.52467936,2790.5,2789.9,0.8106659]
[1645210031298,1.52467936,2790.5,2790.3,0.00135084]
[1645210032104,12.58467936,2790.5,2789.3,0.1791]
[1645210032299,11.06,2790.4,2790.3,0.00135084]
[1645210032500,13.75099,2790.4,2790.3,0.00135084]
[1645210033249,13.75099,2790.4,2788.8,0.1791]
[1645210033451,0.73850848,2789.5,2788.9,0.72465288]
[1645210033649,1.79402,2789.8,2788.9,1.02465288]
[1645210034049,1.79402,2789.8,2788.9,0.72465288]
[1645210034050,0.89701,2789.5,2788.9,0.72465288]
[1645210034252,1.79402,2789.8,2788.9,0.72465288]
[1645210034449,0.8968969,2790.4,2788.9,0.72465288]
[1645210034652,0.8968969,2790.4,2789.4,0.63087443]
[1645210034850,3.58742,2790.8,2789.4,0.63087443]
[1645210035053,2.69066,2790.8,2789.4,0.63087443]
[1645210035251,0.89667,2790.6,2789.4,0.63087443]
[1645210035850,11.95667,2790.6,2789.4,0.63087443]
[1645210036055,0.87199182,2790.1,2789.9,0.00135103]
[1645210036253,0.89671,2790.6,2789.9,0.00135103]
[1645210036500,0.00101282,2791.0,2789.9,0.00135103]
[1645210036697,0.00101282,2791.0,2790.0,0.519]
[1645210037302,0.84483192,2790.9,2790.3,0.82162592]
[1645210037605,0.00743952,2791.6,2790.3,2.61554599]
[1645210037606,0.00260397,2791.5,2790.3,2.61554599]
[1645210037800,0.00260397,2791.5,2790.4,1.4153412]
[1645210038002,0.00260397,2791.5,2790.4,0.519]
[1645210038198,0.00743952,2791.6,2790.4,0.519]
[1645210038399,0.83026283,2791.3,2790.4,0.519]
[1645210038602,0.83026283,2791.3,2790.8,0.00113987]
[1645210039399,0.83026283,2791.3,2790.3,0.82162592]
[1645210039600,0.89648,2791.2,2790.9,0.00113983]
[1645210040641,0.89648,2791.2,2790.3,0.82162592]
[1645210040843,0.83026283,2791.3,2790.3,0.82162592]
[1645210041042,0.83026283,2791.3,2790.9,0.00127928]
[1645210041441,0.00247505,2791.5,2790.9,0.00127928]
[1645210041844,0.00247505,2791.5,2790.8,0.66813819]
[1645210041845,0.00743952,2791.6,2791.0,0.5203691]
[1645210042045,0.00743952,2791.6,2791.1,1.415]
[1645210042246,0.00264641,2791.5,2791.2,3.2873878]
[1645210042444,0.00264641,2791.5,2791.3,0.519]
[1645210042649,0.00264641,2791.5,2791.3,2.0983128]
[1645210042845,0.00264641,2791.5,2791.3,1.20360069]
[1645210043044,0.00743952,2791.6,2791.3,1.50360069]
[1645210043447,0.00264651,2791.5,2791.3,1.50360069]
[1645210043646,0.00264651,2791.5,2791.4,0.8959989]
[1645210043844,0.00264651,2791.5,2791.4,1.4149989]
[1645210044497,0.00743952,2791.6,2791.4,1.4149989]
[1645210044794,0.01010739,2791.6,2791.5,1.79161]
[1645210044993,0.01010739,2791.6,2791.5,2.31061]
[1645210045199,0.01010739,2791.6,2791.5,0.519]
[1645210045595,0.00743952,2791.6,2791.5,0.519]
[1645210047197,0.00743952,2791.6,2791.5,9.319]
[1645210047396,0.00743952,2791.6,2791.5,20.8581]
[1645210047598,0.00743952,2791.6,2791.5,21.8581]
[1645210048539,0.00743952,2791.6,2791.5,4.08974]
[1645210048739,0.01787096,2791.6,2791.5,2.31064]
[1645210049041,0.01787096,2791.6,2791.5,0.519]
[1645210050449,0.01787096,2791.6,2791.5,0.9981]
[1645210050841,0.01787096,2791.6,2791.5,0.819]
[1645210051342,0.01787096,2791.6,2791.5,0.9981]
[1645210052797,0.01787096,2791.6,2791.5,1.3467713]
[1645210053199,0.02576689,2791.6,2791.5,1.3467713]
[1645210053397,0.01044774,2792.2,2791.6,6.0]
[1645210053599,0.01044774,2792.2,2791.6,13.9790075]
[1645210053600,0.01487904,2791.7,2791.6,13.9790075]
[1645210053798,0.01487904,2791.7,2791.6,11.2980075]
[1645210053998,0.01487904,2791.7,2791.6,12.2980075]
[1645210054398,0.01487904,2791.7,2791.6,5.9980075]
[1645210056439,0.06,2792.4,2791.7,5.5]
[1645210056638,0.06,2792.4,2792.0,0.89574]
[1645210056840,0.01066945,2792.3,2792.1,0.519]
[1645210057442,0.06,2792.4,2792.1,0.519]
[1645210057641,0.06,2792.4,2792.2,0.83728613]
[1645210057841,0.06,2792.4,2792.2,1.35628613]
[1645210057842,0.00266776,2792.3,2792.2,1.35628613]
[1645210058642,0.06,2792.4,2792.2,1.35628613]
[1645210059096,0.06266775,2792.4,2792.2,1.35628613]
[1645210059292,0.06266775,2792.4,2792.2,0.519]
[1645210059492,0.06266775,2792.4,2791.5,0.6981]
[1645210059891,0.06266775,2792.4,2791.4,1.5117]
[1645210059892,0.06,2792.4,2791.4,1.5117]
[1645210060093,0.06,2792.4,2790.9,0.89611]
[1645210060094,1.85236,2792.4,2790.8,0.179]
[1645210060294,1.85236,2792.4,2790.6,5.29221]
[1645210060295,0.72794473,2791.6,2791.3,0.00135687]
[1645210060692,0.06266775,2792.4,2791.3,0.00135687]
[1645210061092,0.06,2792.4,2791.0,0.87857641]
[1645210061300,0.89622,2792.2,2791.0,0.87857641]
[1645210061493,0.00255666,2792.0,2791.3,0.00129211]
[1645210061894,0.78954819,2791.6,2791.3,0.00129211]
[1645210062294,0.78954819,2791.6,2791.0,0.87857641]
[1645210062496,0.78954819,2791.6,2791.3,0.00129211]
[1645210062939,0.00255649,2791.8,2791.3,0.00129211]
[1645210063542,0.01022429,2792.3,2791.0,0.87857641]
[1645210063543,0.8962,2792.1,2791.0,0.87857641]
[1645210063741,0.00255657,2791.8,2791.3,0.00129211]
[1645210063940,0.00255657,2791.8,2791.6,0.71133394]
[1645210064741,0.06,2792.4,2791.6,0.71133394]
[1645210064941,0.06,2792.4,2791.6,1.23033394]
[1645210065143,0.06,2792.4,2792.1,0.80301259]
[1645210066690,0.06,2792.4,2791.6,0.519]
[1645210066890,0.06,2792.4,2791.3,0.519]
[1645210066891,0.06578019,2792.4,2791.3,0.519]
[1645210068491,0.64049096,2792.0,2791.7,0.05087952]
[1645210068694,0.64315701,2792.0,2791.7,0.05087952]
[1645210069694,0.64582306,2792.0,2791.7,0.05087952]
[1645210069993,0.64315701,2792.0,2791.7,0.05087952]
[1645210070644,0.64049096,2792.0,2791.7,0.05087952]
[1645210071044,0.64315701,2792.0,2791.7,0.05087952]
[1645210073249,0.64315701,2792.0,2791.9,0.01718791]
[1645210073250,0.64049096,2792.0,2791.9,0.01718791]
[1645210073447,0.00249623,2792.0,2791.9,0.01718791]
[1645210074492,0.06,2792.4,2792.0,0.65024042]
[1645210074692,0.00249622,2792.1,2792.0,0.65024042]
[1645210075496,0.06,2792.4,2792.0,0.65024042]
[1645210075893,0.0024962,2792.2,2792.0,0.65024042]
[1645210076094,0.0024962,2792.2,2792.0,1.54605042]
[1645210076697,0.06,2792.4,2792.0,0.65024042]
[1645210077096,0.00266601,2792.2,2792.0,0.65024042]
[1645210077947,0.00266601,2792.2,2791.9,0.01718791]
[1645210078947,0.00266601,2792.2,2791.7,0.01689402]
[1645210079149,11.12578019,2792.4,2791.7,0.01689402]
[1645210079150,0.06578019,2792.4,2791.7,0.01689402]
[1645210079347,0.06,2792.4,2791.7,0.01689402]
[1645210079548,16.06,2792.1,2791.7,0.01689402]
[1645210079749,11.01,2791.8,2791.7,0.01689402]
[1645210079951,5.89648,2791.9,2791.7,0.01689402]
[1645210080350,1.0,2791.8,2791.7,0.01689402]
[1645210080952,0.8990892,2791.9,2791.7,0.01689402]
[1645210081152,0.0026092,2791.9,2791.7,0.01689402]
[1645210081603,0.07043523,2792.4,2791.8,0.519]
[1645210081604,0.06578019,2792.4,2791.8,0.519]
[1645210081802,0.06,2792.4,2791.8,0.519]
[1645210081998,0.0026092,2791.9,2791.8,0.519]
[1645210082200,0.0026092,2791.9,2791.8,1.38771752]
[1645210082404,0.0026092,2791.9,2791.8,0.519]
[1645210082601,0.0026092,2791.9,2791.7,0.01689402]
[1645210082802,0.00578019,2792.1,2791.7,0.01689402]
[1645210083000,0.06,2792.4,2791.7,0.01689402]
[1645210083201,0.00264417,2792.0,2791.7,0.01689402]
[1645210083800,0.0137578,2791.9,2791.7,0.01689402]